[Event "Titled Tuesday Blitz May 18 2021"]
[White "Deac, Bogdan-Daniel"]
[Black "Pantsulaia, Levan"]
[WhiteFideId "1226380"]
[BlackFideId "13602071"]
[WhiteElo "2605"]
[BlackElo "2530"]
[Result "0-1"]
[Round "06"]
[TimeControl "180+1"]
[Date "2021.05.18"]
[WhiteClock "0:00:04"]
[BlackClock "0:00:12"]

1. e4 {[%clk 0:03:00]}  c5 {[%clk 0:02:59]} 2. Nf3 {[%clk 0:03:01]}  e6 {[%clk 0:03:00]} 3. g3 {[%clk 0:03:02]}  Nc6 {[%clk 0:02:58]} 4. Bg2 {[%clk 0:03:02]}  Nf6 {[%clk 0:02:58]} 5. Qe2 {[%clk 0:03:02]}  d6 {[%clk 0:02:59]} 6. O-O {[%clk 0:02:59]}  Be7 {[%clk 0:02:59]} 7. e5 {[%clk 0:02:55]}  dxe5 {[%clk 0:02:58]} 8. Nxe5 {[%clk 0:02:56]}  Nxe5 {[%clk 0:02:55]} 9. Qxe5 {[%clk 0:02:55]}  O-O {[%clk 0:02:56]} 10. d3 {[%clk 0:02:32]}  Bd6 {[%clk 0:02:55]} 11. Qe2 {[%clk 0:02:32]}  Qc7 {[%clk 0:02:39]} 12. Nc3 {[%clk 0:02:21]}  Bd7 {[%clk 0:02:40]} 13. Bg5 {[%clk 0:02:19]}  Be5 {[%clk 0:02:29]} 14. Rfe1 {[%clk 0:01:58]}  Bd4 {[%clk 0:02:28]} 15. Bxf6 {[%clk 0:01:58]}  Bxf6 {[%clk 0:02:27]} 16. Ne4 {[%clk 0:01:58]}  Be7 {[%clk 0:02:22]} 17. a4 {[%clk 0:01:46]}  Rfd8 {[%clk 0:02:20]} 18. h4 {[%clk 0:01:43]}  h6 {[%clk 0:02:15]} 19. Qe3 {[%clk 0:01:12]}  Bc6 {[%clk 0:02:04]} 20. Nd2 {[%clk 0:01:06]}  Rd4 {[%clk 0:02:00]} 21. b3 {[%clk 0:00:57]}  Rad8 {[%clk 0:01:56]} 22. Bxc6 {[%clk 0:00:53]}  Qxc6 {[%clk 0:01:56]} 23. Nf3 {[%clk 0:00:54]}  R4d5 {[%clk 0:00:53]} 24. Qe4 {[%clk 0:00:47]}  Bf6 {[%clk 0:00:53]} 25. Rad1 {[%clk 0:00:46]}  Qc7 {[%clk 0:00:53]} 26. Kg2 {[%clk 0:00:29]}  Bc3 {[%clk 0:00:53]} 27. Re2 {[%clk 0:00:27]}  a6 {[%clk 0:00:53]} 28. Nd2 {[%clk 0:00:17]}  b5 {[%clk 0:00:52]} 29. axb5 {[%clk 0:00:17]}  axb5 {[%clk 0:00:52]} 30. Qf3 {[%clk 0:00:14]}  Rf5 {[%clk 0:00:49]} 31. Qg4 {[%clk 0:00:10]}  h5 {[%clk 0:00:45]} 32. Qe4 {[%clk 0:00:09]}  Rdd5 {[%clk 0:00:40]} 33. f4 {[%clk 0:00:09]}  Rd8 {[%clk 0:00:39]} 34. Nf3 {[%clk 0:00:08]}  Rfd5 {[%clk 0:00:36]} 35. Ng5 {[%clk 0:00:07]}  Rf5 {[%clk 0:00:34]} 36. Qf3 {[%clk 0:00:04]}  g6 {[%clk 0:00:34]} 37. Re4 {[%clk 0:00:04]}  Bf6 {[%clk 0:00:31]} 38. Rde1 {[%clk 0:00:03]}  Qa5 {[%clk 0:00:30]} 39. R1e2 {[%clk 0:00:03]}  Qc3 {[%clk 0:00:25]} 40. Nxe6 {[%clk 0:00:03]}  fxe6 {[%clk 0:00:25]} 41. Rxe6 {[%clk 0:00:04]}  Qd4 {[%clk 0:00:24]} 42. Re8+ {[%clk 0:00:03]}  Rxe8 {[%clk 0:00:23]} 43. Rxe8+ {[%clk 0:00:04]}  Kf7 {[%clk 0:00:24]} 44. Re4 {[%clk 0:00:04]}  Qd5 {[%clk 0:00:23]} 45. Qe2 {[%clk 0:00:04]}  Bd8 {[%clk 0:00:20]} 46. Kh2 {[%clk 0:00:03]}  Rf6 {[%clk 0:00:18]} 47. Re5 {[%clk 0:00:03]}  Re6 {[%clk 0:00:18]} 48. Qxh5 {[%clk 0:00:03]}  Qxe5 {[%clk 0:00:16]} 49. Qxe5 {[%clk 0:00:02]}  Rxe5 {[%clk 0:00:17]} 50. fxe5 {[%clk 0:00:03]}  Ke6 {[%clk 0:00:17]} 51. Kh3 {[%clk 0:00:03]}  Kf5 {[%clk 0:00:17]} 52. g4+ {[%clk 0:00:03]}  Kxe5 {[%clk 0:00:17]} 53. h5 {[%clk 0:00:04]}  g5 {[%clk 0:00:18]} 54. Kg3 {[%clk 0:00:04]}  Kd4 {[%clk 0:00:16]} 55. Kf3 {[%clk 0:00:05]}  Bf6 {[%clk 0:00:16]} 56. Ke2 {[%clk 0:00:04]}  Kc3 {[%clk 0:00:15]} 57. Kd1 {[%clk 0:00:04]}  Bg7 {[%clk 0:00:16]} 58. Kc1 {[%clk 0:00:04]}  b4 {[%clk 0:00:14]} 59. Kd1 {[%clk 0:00:04]}  Kb2 {[%clk 0:00:14]} 60. Kd2 {[%clk 0:00:04]}  Bc3+ {[%clk 0:00:15]} 61. Kd1 {[%clk 0:00:04]}  Kb1 {[%clk 0:00:15]} 62. h6 {[%clk 0:00:05]}  Kb2 {[%clk 0:00:15]} 63. h7 {[%clk 0:00:05]}  Kb1 {[%clk 0:00:16]} 64. d4 {[%clk 0:00:05]}  Bxd4 {[%clk 0:00:16]} 65. Kd2 {[%clk 0:00:06]}  Kb2 {[%clk 0:00:14]} 66. Kd3 {[%clk 0:00:06]}  Bc3 {[%clk 0:00:14]} 67. Ke4 {[%clk 0:00:03]}  Kxc2 {[%clk 0:00:14]} 68. Kf5 {[%clk 0:00:04]}  c4 {[%clk 0:00:12]} 0-1


[Site "https://www.chess.com"]

[Event "Titled Tuesday Blitz May 18 2021"]
[White "Dvirnyy, Danyyil"]
[Black "Maghsoodloo, Parham"]
[WhiteFideId "817570"]
[BlackFideId "12539929"]
[WhiteElo "2531"]
[BlackElo "2601"]
[Result "1/2-1/2"]
[Round "06"]
[TimeControl "180+1"]
[Date "2021.05.18"]
[WhiteClock "0:00:19"]
[BlackClock "0:00:05"]

1. Nf3 {[%clk 0:03:00]}  d5 {[%clk 0:02:50]} 2. g3 {[%clk 0:03:01]}  c6 {[%clk 0:02:50]} 3. Bg2 {[%clk 0:03:01]}  Bf5 {[%clk 0:02:51]} 4. c4 {[%clk 0:03:01]}  e6 {[%clk 0:02:49]} 5. b3 {[%clk 0:03:00]}  Nd7 {[%clk 0:02:49]} 6. Bb2 {[%clk 0:03:00]}  h6 {[%clk 0:02:48]} 7. O-O {[%clk 0:03:00]}  Ngf6 {[%clk 0:02:49]} 8. d3 {[%clk 0:03:01]}  Be7 {[%clk 0:02:47]} 9. Nbd2 {[%clk 0:03:01]}  O-O {[%clk 0:02:47]} 10. a3 {[%clk 0:03:02]}  a5 {[%clk 0:02:47]} 11. Qc2 {[%clk 0:03:01]}  Bh7 {[%clk 0:02:47]} 12. Bc3 {[%clk 0:03:01]}  b5 {[%clk 0:02:47]} 13. Ne5 {[%clk 0:02:57]}  Nxe5 {[%clk 0:02:41]} 14. Bxe5 {[%clk 0:02:58]}  Qb6 {[%clk 0:02:41]} 15. cxb5 {[%clk 0:02:48]}  cxb5 {[%clk 0:02:40]} 16. Qb2 {[%clk 0:02:25]}  Rfc8 {[%clk 0:02:39]} 17. Rac1 {[%clk 0:02:18]}  Qd8 {[%clk 0:02:32]} 18. Nf3 {[%clk 0:02:14]}  Qf8 {[%clk 0:02:32]} 19. Ra1 {[%clk 0:02:07]}  Nd7 {[%clk 0:02:32]} 20. Bd4 {[%clk 0:02:07]}  f6 {[%clk 0:02:29]} 21. Bh3 {[%clk 0:02:04]}  Qf7 {[%clk 0:02:28]} 22. Rfc1 {[%clk 0:02:03]}  Nf8 {[%clk 0:02:10]} 23. Rxc8 {[%clk 0:01:43]}  Rxc8 {[%clk 0:02:09]} 24. Rc1 {[%clk 0:01:44]}  Qe8 {[%clk 0:02:10]} 25. Bb6 {[%clk 0:01:39]}  a4 {[%clk 0:02:01]} 26. b4 {[%clk 0:01:38]}  Rc6 {[%clk 0:02:00]} 27. Bc5 {[%clk 0:01:34]}  e5 {[%clk 0:01:42]} 28. Bxe7 {[%clk 0:01:33]}  Rxc1+ {[%clk 0:01:41]} 29. Qxc1 {[%clk 0:01:34]}  Qxe7 {[%clk 0:01:41]} 30. Qc6 {[%clk 0:01:34]}  Bg6 {[%clk 0:01:11]} 31. Qxd5+ {[%clk 0:01:24]}  Qf7 {[%clk 0:01:10]} 32. Qxf7+ {[%clk 0:01:22]}  Kxf7 {[%clk 0:01:10]} 33. Nd2 {[%clk 0:01:14]}  Ke7 {[%clk 0:01:09]} 34. f4 {[%clk 0:01:14]}  Kd6 {[%clk 0:01:08]} 35. Kf2 {[%clk 0:01:13]}  exf4 {[%clk 0:01:04]} 36. gxf4 {[%clk 0:01:14]}  Bf7 {[%clk 0:01:04]} 37. e4 {[%clk 0:01:13]}  g5 {[%clk 0:01:02]} 38. Ke3 {[%clk 0:01:13]}  Ng6 {[%clk 0:01:02]} 39. fxg5 {[%clk 0:01:12]}  hxg5 {[%clk 0:01:00]} 40. Bf1 {[%clk 0:01:12]}  Ne5 {[%clk 0:00:54]} 41. d4 {[%clk 0:01:12]}  Ng4+ {[%clk 0:00:54]} 42. Ke2 {[%clk 0:01:07]}  Nxh2 {[%clk 0:00:54]} 43. Bg2 {[%clk 0:01:06]}  Bh5+ {[%clk 0:00:45]} 44. Kd3 {[%clk 0:00:54]}  Bg6 {[%clk 0:00:40]} 45. Ke3 {[%clk 0:00:53]}  Ng4+ {[%clk 0:00:40]} 46. Ke2 {[%clk 0:00:53]}  Nh6 {[%clk 0:00:40]} 47. Ke3 {[%clk 0:00:45]}  f5 {[%clk 0:00:33]} 48. e5+ {[%clk 0:00:37]}  Ke6 {[%clk 0:00:33]} 49. Bb7 {[%clk 0:00:38]}  f4+ {[%clk 0:00:33]} 50. Kf3 {[%clk 0:00:38]}  Nf5 {[%clk 0:00:32]} 51. Bc8+ {[%clk 0:00:37]}  Kd5 {[%clk 0:00:33]} 52. Kg4 {[%clk 0:00:23]}  Nxd4 {[%clk 0:00:15]} 53. Kxg5 {[%clk 0:00:24]}  Be8 {[%clk 0:00:14]} 54. Kxf4 {[%clk 0:00:22]}  Nc2 {[%clk 0:00:15]} 55. Nb1 {[%clk 0:00:22]}  Kd4 {[%clk 0:00:12]} 56. Bf5 {[%clk 0:00:22]}  Ne3 {[%clk 0:00:10]} 57. e6 {[%clk 0:00:22]}  Nd5+ {[%clk 0:00:10]} 58. Kg5 {[%clk 0:00:22]}  Ke5 {[%clk 0:00:10]} 59. Nd2 {[%clk 0:00:21]}  Ne3 {[%clk 0:00:10]} 60. Nf3+ {[%clk 0:00:20]}  Kd6 {[%clk 0:00:10]} 61. Bd3 {[%clk 0:00:18]}  Kxe6 {[%clk 0:00:08]} 62. Nd4+ {[%clk 0:00:19]}  Kd5 {[%clk 0:00:04]} 63. Nxb5 {[%clk 0:00:20]}  Bxb5 {[%clk 0:00:04]} 64. Bxb5 {[%clk 0:00:20]}  Nc2 {[%clk 0:00:05]} 65. Bxa4 {[%clk 0:00:19]}  Nxa3 {[%clk 0:00:06]} 66. Bc6+ {[%clk 0:00:18]}  Kxc6 {[%clk 0:00:05]} 67. b5+ {[%clk 0:00:19]}  Nxb5 {[%clk 0:00:05]} 1/2-1/2


[Site "https://www.chess.com"]

[Event "Titled Tuesday Blitz May 18 2021"]
[White "Erigaisi Arjun"]
[Black "Klimkowski, Jan"]
[WhiteFideId "35009192"]
[BlackFideId "21856222"]
[WhiteElo "2609"]
[BlackElo "1903"]
[Result "1-0"]
[Round "06"]
[TimeControl "180+1"]
[Date "2021.05.18"]
[WhiteClock "0:01:59"]
[BlackClock "0:01:02"]

1. b3 {[%clk 0:03:00]}  Nf6 {[%clk 0:02:58]} 2. Bb2 {[%clk 0:03:01]}  g6 {[%clk 0:02:58]} 3. g3 {[%clk 0:03:02]}  Bg7 {[%clk 0:02:58]} 4. Bg2 {[%clk 0:03:03]}  O-O {[%clk 0:02:59]} 5. Nf3 {[%clk 0:03:03]}  c6 {[%clk 0:02:59]} 6. O-O {[%clk 0:02:59]}  d5 {[%clk 0:03:00]} 7. c4 {[%clk 0:03:00]}  Nbd7 {[%clk 0:02:56]} 8. Nc3 {[%clk 0:02:57]}  e5 {[%clk 0:02:56]} 9. d4 {[%clk 0:02:53]}  e4 {[%clk 0:02:54]} 10. Ne5 {[%clk 0:02:53]}  Re8 {[%clk 0:02:52]} 11. cxd5 {[%clk 0:02:52]}  cxd5 {[%clk 0:02:42]} 12. Nb5 {[%clk 0:02:51]}  Re6 {[%clk 0:02:13]} 13. Rc1 {[%clk 0:02:49]}  Ne8 {[%clk 0:02:05]} 14. Bh3 {[%clk 0:02:46]}  Rb6 {[%clk 0:02:02]} 15. Rxc8 {[%clk 0:02:45]}  Rxc8 {[%clk 0:02:02]} 16. Bxd7 {[%clk 0:02:46]}  Bxe5 {[%clk 0:02:02]} 17. Bxc8 {[%clk 0:02:45]}  Rxb5 {[%clk 0:01:56]} 18. dxe5 {[%clk 0:02:45]}  Qxc8 {[%clk 0:01:56]} 19. Qd4 {[%clk 0:02:45]}  b6 {[%clk 0:01:32]} 20. Rc1 {[%clk 0:02:12]}  Rc5 {[%clk 0:01:28]} 21. Rd1 {[%clk 0:01:59]}  Rc2 {[%clk 0:01:05]} 22. e6 {[%clk 0:01:59]}  f6 {[%clk 0:01:05]} 23. Qxd5 {[%clk 0:01:59]}  Rxb2 {[%clk 0:01:02]} 24. Qd7 {[%clk 0:01:59]} 1-0


[Site "https://www.chess.com"]

[Event "Titled Tuesday Blitz May 18 2021"]
[White "Karthikeyan, Murali"]
[Black "Van Foreest, Jorden"]
[WhiteFideId "5074452"]
[BlackFideId "1039784"]
[WhiteElo "2564"]
[BlackElo "2622"]
[Result "0-1"]
[Round "06"]
[TimeControl "180+1"]
[Date "2021.05.18"]
[WhiteClock "0:00:01"]
[BlackClock "0:00:06"]

1. e4 {[%clk 0:03:00]}  c6 {[%clk 0:02:05]} 2. Nc3 {[%clk 0:02:55]}  d5 {[%clk 0:02:04]} 3. d4 {[%clk 0:02:54]}  dxe4 {[%clk 0:02:04]} 4. Nxe4 {[%clk 0:02:55]}  Nd7 {[%clk 0:02:04]} 5. Bc4 {[%clk 0:02:29]}  Nb6 {[%clk 0:01:53]} 6. Bb3 {[%clk 0:02:24]}  Nf6 {[%clk 0:01:50]} 7. Nxf6+ {[%clk 0:02:23]}  exf6 {[%clk 0:01:51]} 8. Ne2 {[%clk 0:02:19]}  Bd6 {[%clk 0:01:49]} 9. O-O {[%clk 0:02:15]}  a5 {[%clk 0:01:48]} 10. a3 {[%clk 0:02:11]}  O-O {[%clk 0:01:44]} 11. c4 {[%clk 0:02:07]}  Bc7 {[%clk 0:01:39]} 12. h3 {[%clk 0:02:01]}  Be6 {[%clk 0:01:35]} 13. Qd3 {[%clk 0:01:42]}  Qd7 {[%clk 0:01:30]} 14. Bf4 {[%clk 0:01:38]}  Bf5 {[%clk 0:01:24]} 15. Qc3 {[%clk 0:01:22]}  Rfe8 {[%clk 0:01:12]} 16. Bxc7 {[%clk 0:01:21]}  Qxc7 {[%clk 0:01:13]} 17. Rfe1 {[%clk 0:01:21]}  a4 {[%clk 0:01:06]} 18. Ba2 {[%clk 0:01:14]}  Rad8 {[%clk 0:00:55]} 19. Rad1 {[%clk 0:01:12]}  h6 {[%clk 0:00:43]} 20. Qa5 {[%clk 0:01:00]}  Bc2 {[%clk 0:00:38]} 21. Rd2 {[%clk 0:00:57]}  Bg6 {[%clk 0:00:32]} 22. Red1 {[%clk 0:00:46]}  Ra8 {[%clk 0:00:29]} 23. Qc3 {[%clk 0:00:45]}  Rad8 {[%clk 0:00:29]} 24. d5 {[%clk 0:00:42]}  c5 {[%clk 0:00:28]} 25. Bb1 {[%clk 0:00:25]}  Bxb1 {[%clk 0:00:28]} 26. Rxb1 {[%clk 0:00:26]}  Re4 {[%clk 0:00:29]} 27. Ng3 {[%clk 0:00:12]}  Rxc4 {[%clk 0:00:27]} 28. Qf3 {[%clk 0:00:09]}  Rf4 {[%clk 0:00:26]} 29. Qh5 {[%clk 0:00:09]}  Qe5 {[%clk 0:00:20]} 30. Rc1 {[%clk 0:00:05]}  Qxh5 {[%clk 0:00:15]} 31. Nxh5 {[%clk 0:00:06]}  Rd4 {[%clk 0:00:16]} 32. Rdc2 {[%clk 0:00:04]}  c4 {[%clk 0:00:16]} 33. Ng3 {[%clk 0:00:03]}  R8xd5 {[%clk 0:00:16]} 34. Nf1 {[%clk 0:00:03]}  Rd1 {[%clk 0:00:16]} 35. f3 {[%clk 0:00:03]}  Rxc1 {[%clk 0:00:16]} 36. Rxc1 {[%clk 0:00:04]}  Rd3 {[%clk 0:00:16]} 37. Kf2 {[%clk 0:00:04]}  Rb3 {[%clk 0:00:15]} 38. Rc2 {[%clk 0:00:04]}  c3 {[%clk 0:00:15]} 39. bxc3 {[%clk 0:00:04]}  Nc4 {[%clk 0:00:08]} 40. Nd2 {[%clk 0:00:02]}  Nxa3 {[%clk 0:00:08]} 41. Nxb3 {[%clk 0:00:01]}  Nxc2 {[%clk 0:00:08]} 42. Nc1 {[%clk 0:00:01]}  b5 {[%clk 0:00:06]} 43. Ke2 {[%clk 0:00:02]}  b4 {[%clk 0:00:06]} 44. Kd3 {[%clk 0:00:01]}  b3 {[%clk 0:00:06]} 0-1


[Site "https://www.chess.com"]

[Event "Titled Tuesday Blitz May 18 2021"]
[White "Mirzoev, Azer"]
[Black "Kuzubov, Yuriy"]
[WhiteFideId "13400304"]
[BlackFideId "14112906"]
[WhiteElo "2525"]
[BlackElo "2577"]
[Result "1-0"]
[Round "06"]
[TimeControl "180+1"]
[Date "2021.05.18"]
[WhiteClock "0:00:03"]
[BlackClock "0:00:07"]

1. d4 {[%clk 0:02:59]}  Nf6 {[%clk 0:02:59]} 2. Nf3 {[%clk 0:03:00]}  e6 {[%clk 0:02:59]} 3. Bg5 {[%clk 0:02:59]}  h6 {[%clk 0:02:58]} 4. Bh4 {[%clk 0:02:59]}  c5 {[%clk 0:02:55]} 5. e3 {[%clk 0:02:57]}  Nc6 {[%clk 0:02:53]} 6. c3 {[%clk 0:02:56]}  Qb6 {[%clk 0:02:39]} 7. Qb3 {[%clk 0:02:53]}  g5 {[%clk 0:02:23]} 8. Bg3 {[%clk 0:02:52]}  Qxb3 {[%clk 0:02:17]} 9. axb3 {[%clk 0:02:51]}  Ne4 {[%clk 0:02:17]} 10. Bc7 {[%clk 0:02:46]}  d6 {[%clk 0:02:11]} 11. dxc5 {[%clk 0:02:22]}  Nxc5 {[%clk 0:01:37]} 12. b4 {[%clk 0:02:21]}  Na6 {[%clk 0:01:30]} 13. Bxa6 {[%clk 0:01:49]}  bxa6 {[%clk 0:01:31]} 14. Nbd2 {[%clk 0:01:48]}  Kd7 {[%clk 0:01:28]} 15. Ba5 {[%clk 0:01:47]}  Bg7 {[%clk 0:01:26]} 16. O-O {[%clk 0:01:40]}  Bb7 {[%clk 0:01:26]} 17. Rfd1 {[%clk 0:01:37]}  Ke7 {[%clk 0:01:23]} 18. Nc4 {[%clk 0:01:35]}  g4 {[%clk 0:01:02]} 19. Ne1 {[%clk 0:01:29]}  d5 {[%clk 0:00:55]} 20. Nd2 {[%clk 0:01:28]}  h5 {[%clk 0:00:53]} 21. Nd3 {[%clk 0:01:25]}  Rag8 {[%clk 0:00:49]} 22. Nc5 {[%clk 0:01:23]}  Bc8 {[%clk 0:00:49]} 23. Bc7 {[%clk 0:01:16]}  h4 {[%clk 0:00:49]} 24. Nxa6 {[%clk 0:01:08]}  e5 {[%clk 0:00:41]} 25. b5 {[%clk 0:01:00]}  Nd8 {[%clk 0:00:40]} 26. Nb4 {[%clk 0:01:00]}  g3 {[%clk 0:00:21]} 27. fxg3 {[%clk 0:00:49]}  hxg3 {[%clk 0:00:19]} 28. h3 {[%clk 0:00:47]}  Ke6 {[%clk 0:00:19]} 29. Rxa7 {[%clk 0:00:42]}  Bh6 {[%clk 0:00:19]} 30. Re1 {[%clk 0:00:38]}  Nb7 {[%clk 0:00:17]} 31. Ra6+ {[%clk 0:00:22]}  Kd7 {[%clk 0:00:17]} 32. Nxd5 {[%clk 0:00:19]}  Rg6 {[%clk 0:00:17]} 33. Rxg6 {[%clk 0:00:17]}  fxg6 {[%clk 0:00:18]} 34. Ne4 {[%clk 0:00:15]}  Ke6 {[%clk 0:00:17]} 35. c4 {[%clk 0:00:14]}  Bd7 {[%clk 0:00:15]} 36. Nxg3 {[%clk 0:00:11]}  Bxb5 {[%clk 0:00:15]} 37. cxb5 {[%clk 0:00:11]}  Kxd5 {[%clk 0:00:15]} 38. e4+ {[%clk 0:00:09]}  Kc4 {[%clk 0:00:15]} 39. b6 {[%clk 0:00:09]}  Ra8 {[%clk 0:00:15]} 40. Ne2 {[%clk 0:00:09]}  Ra2 {[%clk 0:00:13]} 41. Rb1 {[%clk 0:00:08]}  Kd3 {[%clk 0:00:13]} 42. Ng3 {[%clk 0:00:07]}  Bf4 {[%clk 0:00:13]} 43. Nf1 {[%clk 0:00:07]}  Kc2 {[%clk 0:00:13]} 44. Re1 {[%clk 0:00:07]}  Kd3 {[%clk 0:00:13]} 45. g3 {[%clk 0:00:07]}  Bh6 {[%clk 0:00:13]} 46. h4 {[%clk 0:00:07]}  Rxb2 {[%clk 0:00:13]} 47. Rd1+ {[%clk 0:00:07]}  Kxe4 {[%clk 0:00:13]} 48. Rd7 {[%clk 0:00:06]}  Nc5 {[%clk 0:00:13]} 49. Rf7 {[%clk 0:00:05]}  Nd3 {[%clk 0:00:12]} 50. Bd8 {[%clk 0:00:05]}  Bf8 {[%clk 0:00:11]} 51. Rxf8 {[%clk 0:00:05]}  Nc1 {[%clk 0:00:10]} 52. Bc7 {[%clk 0:00:04]}  Ne2+ {[%clk 0:00:10]} 53. Kg2 {[%clk 0:00:04]}  Nf4+ {[%clk 0:00:10]} 54. Kg1 {[%clk 0:00:04]}  Nh3+ {[%clk 0:00:10]} 55. Kh1 {[%clk 0:00:04]}  Kd3 {[%clk 0:00:10]} 56. g4 {[%clk 0:00:04]}  e4 {[%clk 0:00:09]} 57. Ng3 {[%clk 0:00:04]}  Nf2+ {[%clk 0:00:08]} 58. Rxf2 {[%clk 0:00:03]}  Rxf2 {[%clk 0:00:08]} 59. b7 {[%clk 0:00:04]}  e3 {[%clk 0:00:06]} 60. b8=Q {[%clk 0:00:03]}  e2 {[%clk 0:00:07]} 61. Nxe2 {[%clk 0:00:03]}  Kxe2 {[%clk 0:00:07]} 62. Qb5+ {[%clk 0:00:04]}  Kf3 {[%clk 0:00:07]} 63. Qd5+ {[%clk 0:00:04]}  Kxg4 {[%clk 0:00:07]} 64. Qd4+ {[%clk 0:00:04]}  Kf3 {[%clk 0:00:07]} 65. Qd3+ {[%clk 0:00:03]}  Kg4 {[%clk 0:00:07]} 66. Qg3+ {[%clk 0:00:03]}  Kh5 {[%clk 0:00:07]} 67. Qg5# {[%clk 0:00:03]} 1-0


[Site "https://www.chess.com"]

[Event "Titled Tuesday Blitz May 18 2021"]
[White "Molina, Roberto Junio Brito"]
[Black "Eljanov, Pavel"]
[WhiteFideId "2109450"]
[BlackFideId "14102951"]
[WhiteElo "2402"]
[BlackElo "2602"]
[Result "0-1"]
[Round "06"]
[TimeControl "180+1"]
[Date "2021.05.18"]
[WhiteClock "0:00:07"]
[BlackClock "0:00:09"]

1. d4 {[%clk 0:03:00]}  Nf6 {[%clk 0:02:59]} 2. Nf3 {[%clk 0:03:00]}  e6 {[%clk 0:02:58]} 3. e3 {[%clk 0:03:00]}  c5 {[%clk 0:02:57]} 4. Bd3 {[%clk 0:02:58]}  b6 {[%clk 0:02:50]} 5. O-O {[%clk 0:02:58]}  Bb7 {[%clk 0:02:49]} 6. Qe2 {[%clk 0:02:56]}  Be7 {[%clk 0:02:45]} 7. Nbd2 {[%clk 0:02:53]}  O-O {[%clk 0:02:44]} 8. c3 {[%clk 0:02:52]}  Nc6 {[%clk 0:02:39]} 9. a3 {[%clk 0:02:51]}  d5 {[%clk 0:02:31]} 10. b4 {[%clk 0:02:46]}  c4 {[%clk 0:02:18]} 11. Bc2 {[%clk 0:02:45]}  b5 {[%clk 0:02:18]} 12. a4 {[%clk 0:02:44]}  a6 {[%clk 0:02:05]} 13. Ne5 {[%clk 0:02:32]}  Nxe5 {[%clk 0:01:50]} 14. dxe5 {[%clk 0:02:32]}  Ne4 {[%clk 0:01:50]} 15. Nxe4 {[%clk 0:02:11]}  dxe4 {[%clk 0:01:51]} 16. Qg4 {[%clk 0:02:11]}  Qd5 {[%clk 0:01:51]} 17. Rd1 {[%clk 0:02:10]}  Qxe5 {[%clk 0:01:46]} 18. Bd2 {[%clk 0:02:10]}  f5 {[%clk 0:01:40]} 19. Qe2 {[%clk 0:02:09]}  Rfd8 {[%clk 0:01:38]} 20. Be1 {[%clk 0:02:05]}  Bc6 {[%clk 0:01:36]} 21. axb5 {[%clk 0:02:01]}  axb5 {[%clk 0:01:36]} 22. Rxd8+ {[%clk 0:01:59]}  Rxd8 {[%clk 0:01:30]} 23. Rd1 {[%clk 0:01:53]}  Rd3 {[%clk 0:01:12]} 24. Bxd3 {[%clk 0:01:51]}  exd3 {[%clk 0:01:12]} 25. Qd2 {[%clk 0:01:38]}  Bd6 {[%clk 0:01:08]} 26. f4 {[%clk 0:01:35]}  Qe4 {[%clk 0:01:09]} 27. Bh4 {[%clk 0:01:17]}  h6 {[%clk 0:01:02]} 28. Re1 {[%clk 0:01:07]}  Kh7 {[%clk 0:00:56]} 29. h3 {[%clk 0:01:07]}  Bc7 {[%clk 0:00:43]} 30. Kh2 {[%clk 0:01:05]}  Bb6 {[%clk 0:00:37]} 31. Bg3 {[%clk 0:00:56]}  Qd5 {[%clk 0:00:34]} 32. Bh4 {[%clk 0:00:53]}  Bb7 {[%clk 0:00:34]} 33. Bg3 {[%clk 0:00:52]}  Qd8 {[%clk 0:00:34]} 34. Ra1 {[%clk 0:00:47]}  Qb8 {[%clk 0:00:31]} 35. Bf2 {[%clk 0:00:41]}  Be4 {[%clk 0:00:30]} 36. g4 {[%clk 0:00:40]}  Bb7 {[%clk 0:00:23]} 37. Rg1 {[%clk 0:00:35]}  Qc7 {[%clk 0:00:20]} 38. Be1 {[%clk 0:00:32]}  Qc6 {[%clk 0:00:19]} 39. Qf2 {[%clk 0:00:32]}  Qd7 {[%clk 0:00:12]} 40. Bd2 {[%clk 0:00:30]}  Be4 {[%clk 0:00:11]} 41. Qh4 {[%clk 0:00:29]}  Bd8 {[%clk 0:00:10]} 42. Qg3 {[%clk 0:00:28]}  Qf7 {[%clk 0:00:11]} 43. Qf2 {[%clk 0:00:17]}  Qa7 {[%clk 0:00:11]} 44. Be1 {[%clk 0:00:15]}  Qa1 {[%clk 0:00:10]} 45. Bd2 {[%clk 0:00:13]}  Qb2 {[%clk 0:00:10]} 46. Kg3 {[%clk 0:00:09]}  Bf6 {[%clk 0:00:09]} 47. h4 {[%clk 0:00:08]}  Bxc3 {[%clk 0:00:09]} 48. Bxc3 {[%clk 0:00:08]}  Qxc3 {[%clk 0:00:09]} 49. g5 {[%clk 0:00:08]}  h5 {[%clk 0:00:09]} 50. g6+ {[%clk 0:00:08]}  Kxg6 {[%clk 0:00:09]} 51. Kh3+ {[%clk 0:00:08]}  Kf7 {[%clk 0:00:09]} 52. Qg3 {[%clk 0:00:09]}  Qf6 {[%clk 0:00:09]} 53. Qe1 {[%clk 0:00:07]}  c3 {[%clk 0:00:09]} 54. Qa1 {[%clk 0:00:07]}  c2 {[%clk 0:00:09]} 55. Qa7+ {[%clk 0:00:08]}  Kg8 {[%clk 0:00:09]} 56. Qc5 {[%clk 0:00:06]}  d2 {[%clk 0:00:09]} 57. Qc8+ {[%clk 0:00:07]}  Kh7 {[%clk 0:00:09]} 58. Rg6 {[%clk 0:00:07]}  Qxg6 {[%clk 0:00:09]} 0-1


[Site "https://www.chess.com"]